[Event "20th Delhi GM Open 2023"]
[Site "New Delhi"]
[Date "2023.03.24"]
[Round "3.2"]
[White "Aravindh, Chithambaram VR."]
[Black "Abhrojyoty Nath"]
[Result "1-0"]
[ECO "A49"]
[WhiteElo "2607"]
[BlackElo "1675"]
[Annotator "TA"]
[PlyCount "77"]
[EventDate "2023.03.23"]
[EventType "swiss"]
[EventCountry "IND"]
[SourceTitle "playchess.com"]
[Source "ChessBase"]
[SourceQuality "1"]
[TimeControl "5400+30"]

{[%evp 12,77,24,21,17,13,30,28,12,20,26,0,15,2,24,8,28,0,31,28,20,22,29,27,19,25,85,50,82,79,81,58,58,76,79,79,195,198,193,177,165,183,237,244,261,268,250,251,256,243,239,253,308,299,462,466,853,837,29994,29972,29972,29973,12284,9186,1078,63,1078,1078]} 1. d4 {[%emt 0:00:05]} Nf6 {[%emt 0:00:18]} 2. Nf3 {[%emt 0:00:08]} g6 {[%emt 0:00:16]} 3. g3 {[%emt 0:00:09]} Bg7 {[%emt 0:00:12]} 4. Bg2 {[%emt 0:00:07]} O-O {[%emt 0:00:25]} 5. O-O {[%emt 0:00:11]} d6 {[%emt 0:00:28]} 6. Nc3 {[%emt 0:00:10]} Nbd7 {[%emt 0:07:13]} 7. a4 {[%emt 0:00:16]} a5 {[%emt 0:01:44] A49: 1 d4 Nf6 2 Nf3 g6 3 g3: Anti-King's Indian systems.} 8. b3 {[%emt 0:04:47]} Re8 {[%emt 0:04:45]} 9. Bb2 {[%emt 0:12:12]} c6 {[%emt 0:11:56] White has an edge.} 10. e4 {[%emt 0:06:12]} e5 {[%emt 0:04:12]} 11. Re1 {[%emt 0:01:21]} Qc7 {[%emt 0:01:24]} 12. Qd2 {[%emt 0:00:51] [#]} b6 $146 {[%emt 0:15:30]} ({Predecessor:} 12... exd4 13. Nxd4 Nc5 14. h3 Bd7 15. Rad1 Rad8 16. Kh2 Bc8 17. f4 Na6 18. Qf2 Nb4 {0-1 Praggnanandhaa,R (2608)-Maksimovic,B (2425) Titled Tuesday intern op 24th Aug blitz 2021 (3)}) 13. Rad1 {[%emt 0:00:57]} Bb7 {[%emt 0:01:04]} 14. Ba3 {[%emt 0:06:03]} Bf8 {[%emt 0:02:54]} 15. dxe5 {[%emt 0:00:44]} dxe5 {[%emt 0:00:04]} 16. Bd6 Bxd6 {[%emt 0:13:40]} 17. Qxd6 {[%emt 0:12:05]} Qxd6 {[%emt 0:00:51]} 18. Rxd6 {[%emt 0:00:06] Black must now prevent Bh3.} Kf8 {[%emt 0:03:59]} (18... Re7 $11) 19. Nd2 {[%emt 0:00:41]} (19. Red1 {is interesting.} Ke7 20. g4 Red8 21. g5) 19... Ke7 {[%emt 0:01:26]} 20. Nc4 $36 {[%emt 0:00:07][%mdl 2048] Black is under strong pressure.} Rac8 {[%emt 0:08:56]} 21. Red1 {[%emt 0:12:09]} Ba6 {[%emt 0:02:32]} 22. Bh3 $1 {[%emt 0:01:44]} Rc7 {[%emt 0:00:28] Black is now going downhill.} 23. Ne3 {[%emt 0:00:13] White is much more active.} Nc5 {[%emt 0:01:14] [#]} (23... Rd8 $16 {was called for.}) 24. Rxf6 $1 $18 {[%emt 0:01:00][%mdl 512]} Kxf6 {[%emt 0:01:08] [#]} 25. Ned5+ $1 {[%emt 0:00:07][%mdl 512]} cxd5 {[%emt 0:00:47]} 26. Nxd5+ {[%emt 0:00:03]} Kg5 {[%emt 0:01:35]} (26... Kg7 $142 27. Nxc7 Rb8 28. Nxa6 Nxa6) 27. Nxc7 {[%emt 0:00:14]} Re7 {[%emt 0:04:27]} 28. Nd5 {[%emt 0:07:13][%csl LRb6,LRe7]} Rb7 {[%emt 0:00:15]} 29. Bc8 {[%emt 0:00:00]} Rb8 {[%emt 0:00:06]} 30. Bxa6 {[%emt 0:00:04]} Nxa6 {[%emt 0:00:02][%mdl 4096] Endgame KRN-KRN} 31. Ne3 {[%emt 0:01:23]} Nc5 {[%emt 0:01:30]} 32. f3 {[%emt 0:00:10]} f5 {[%emt 0:00:19]} (32... Rb7 $142 33. Rd5 Kf6 34. Ng4+ Ke6 35. Rxe5+ Kd6 36. Rd5+ Ke6 37. Re5+ Kd6 38. Rd5+ Ke6) 33. exf5 {[%emt 0:01:01]} gxf5 {[%emt 0:00:03]} (33... Kf6 $142 34. fxg6 Kxg6 35. Rd6+ Kg7) 34. Rd6 {[%emt 0:00:11] Intending h4+ and mate.} e4 {[%emt 0:02:10]} 35. h4+ {[%emt 0:03:44]} Kh5 {[%emt 0:00:10]} 36. Nxf5 {[%emt 0:00:06][%csl Gf3][%cal Rg3g4]} exf3 {[%emt 0:00:11]} 37. Kh2 {[%emt 0:00:13] Threatening mate with Rh6+.} f2 {[%emt 0:00:39]} 38. Ng7+ {[%emt 0:00:09]} Kg4 {[%emt 0:00:16]} 39. Rf6 {[%emt 0:00:04] Weighted Error Value: White=0.05 (flawless) /Black=0.53} 1-0

[Event "20th Delhi GM Open 2023"]
[Site "New Delhi"]
[Date "2023.03.24"]
[Round "3.3"]
[White "Aarohon Bharadwaj"]
[Black "Pantsulaia, Levan"]
[Result "0-1"]
[ECO "A04"]
[WhiteElo "1672"]
[BlackElo "2597"]
[Annotator "TA"]
[PlyCount "82"]
[EventDate "2023.03.23"]
[EventType "swiss"]
[EventCountry "IND"]
[SourceTitle "playchess.com"]
[Source "ChessBase"]
[SourceQuality "1"]
[TimeControl "5400+30"]

{[%evp 12,82,11,0,1,11,13,0,0,0,0,-14,5,-17,0,0,-3,-22,-25,-38,0,-13,4,0,2,0,1,0,15,16,13,11,0,-29,0,0,0,0,0,0,0,-30,-56,-97,-93,-97,-96,-140,-139,-171,-171,-184,-167,-188,-188,-188,-191,-262,-260,-267,-258,-343,-335,-341,-296,-325,-310,-445,-437,-1112,-1084,-996,-935]} 1. e4 {[%emt 0:00:04]} c5 {[%emt 0:00:10]} 2. Nf3 {[%emt 0:00:09]} e6 {[%emt 0:01:03]} 3. d3 {[%emt 0:00:25]} Nc6 {[%emt 0:00:35]} 4. g3 {[%emt 0:00:10]} g6 {[%emt 0:01:06]} 5. Bg2 {[%emt 0:00:10]} Bg7 {[%emt 0:00:06]} 6. O-O {[%emt 0:00:26]} Nge7 {[%emt 0:00:08]} 7. c3 {[%emt 0:00:48]} e5 {[%emt 0:03:55] A04: Unusual lines after 1 Nf3 and King's Indian Attack.} 8. Be3 {[%emt 0:02:08]} d6 {[%emt 0:00:09]} 9. a3 {[%emt 0:00:14]} O-O {[%emt 0:00:29] The position is equal.} 10. b4 {[%emt 0:02:10]} b6 {[%emt 0:03:05]} 11. Nbd2 {[%emt 0:03:10]} h6 {[%emt 0:02:36]} 12. Nb3 {[%emt 0:02:01]} Be6 {[%emt 0:02:44]} 13. b5 {[%emt 0:13:53]} Nb8 {[%emt 0:00:22][%cal Bc6b8,Bb8d7,Bd7f6][%mdl 32] [#]} 14. Re1 $146 {[%emt 0:00:25]} ({Predecessor:} 14. a4 Nd7 15. d4 exd4 16. cxd4 Bc4 17. Re1 a6 18. bxa6 Nc6 19. Rc1 Bxa6 20. Bf4 {½-½ Soham,D (2386)-Czebe,A (2422) Budapest FS05 GM 2019 (7)}) 14... a6 {[%emt 0:11:38]} 15. bxa6 {[%emt 0:05:09]} Rxa6 {[%emt 0:02:18]} 16. d4 {[%emt 0:02:56]} Qc7 {[%emt 0:05:17]} 17. Bf1 {[%emt 0:03:47]} Ra8 {[%emt 0:06:09]} 18. a4 {[%emt 0:01:23]} Nd7 {[%emt 0:04:15]} 19. Nbd2 {[%emt 0:09:15]} (19. d5 $5 Bg4 $8 20. h3 Bxf3 21. Qxf3 $11) 19... Nf6 {[%emt 0:12:56]} 20. dxe5 {[%emt 0:17:46]} dxe5 {[%emt 0:00:17]} 21. Qc2 {[%emt 0:00:51]} Ng4 {[%emt 0:01:36]} 22. Bc4 {[%emt 0:02:01]} Nxe3 {[%emt 0:00:26]} 23. Rxe3 {[%emt 0:00:22]} Bxc4 {[%emt 0:00:43]} 24. Nxc4 {[%emt 0:00:11]} b5 {[%emt 0:00:04]} 25. Nb2 {[%emt 0:01:53]} Ra6 {[%emt 0:08:51]} 26. Qe2 {[%emt 0:18:32] [#] Rb1 would be deadly.} c4 {[%emt 0:04:19]} 27. Rd1 {[%emt 0:02:03] Black converts the advantage convincingly.} bxa4 {[%emt 0:00:10]} 28. Nxc4 {[%emt 0:00:15]} Rc6 {[%emt 0:01:37]} 29. Na3 {[%emt 0:01:40]} Rxc3 {[%emt 0:00:59]} 30. Rxc3 {[%emt 0:01:17]} Qxc3 {[%emt 0:00:12]} 31. Rd3 {[%emt 0:00:17]} Qc1+ {[%emt 0:00:53]} 32. Qd1 {[%emt 0:04:20]} Qxd1+ {[%emt 0:01:49]} 33. Rxd1 {[%emt 0:00:05]} Ra8 {[%emt 0:02:45]} 34. Ne1 {[%emt 0:04:11]} (34. Rc1 $142) 34... Nc6 $19 {[%emt 0:00:52]} 35. Nec2 {[%emt 0:02:32]} Bf8 {[%emt 0:00:27]} 36. Rd3 {[%emt 0:00:23]} Nb4 {[%emt 0:00:31]} 37. Nxb4 {[%emt 0:00:08]} Bxb4 {[%emt 0:00:05]} 38. Kg2 {[%emt 0:00:05]} Kf8 {[%emt 0:02:06] Strongly threatening ...Bxa3.} 39. Rf3 {[%emt 0:01:51]} (39. Nc2 {keeps fighting.} Be7 40. Na3) 39... Ke7 {[%emt 0:00:45] [#] Threatens to win with ...Bxa3. Black is clearly winning.} 40. Rd3 {[%emt 0:00:17]} (40. Nc2 $142 Bd6 41. Rc3) 40... Bxa3 {[%emt 0:00:19]} 41. Rxa3 {[%emt 0:00:14]} Kd6 {[%emt 0:00:03] Weighted Error Value: White=0.28 (precise) /Black=0.05 (flawless)} 0-1

[Event "20th Delhi GM Open 2023"]
[Site "New Delhi"]
[Date "2023.03.24"]
[Round "3.4"]
[White "Kobalia, Mikhail"]
[Black "Verma Ashu"]
[Result "1-0"]
[ECO "B00"]
[WhiteElo "2577"]
[BlackElo "1673"]
[Annotator "TA"]
[PlyCount "30"]
[EventDate "2023.03.23"]
[EventType "swiss"]
[EventCountry "IND"]
[SourceTitle "playchess.com"]
[Source "ChessBase"]
[SourceQuality "1"]
[TimeControl "5400+30"]

{[%evp 9,30,68,86,73,88,18,11,14,25,-8,6,-21,-11,-12,-17,-13,-17,-26,-27,-31,0,0,0]} 1. e4 {[%emt 0:00:03]} Nc6 {[%emt 0:09:13]} 2. Nf3 {[%emt 0:00:43]} f5 3. exf5 {[%emt 0:04:32]} d5 {[%emt 0:00:25]} 4. d4 {[%emt 0:01:08]} Bxf5 {[%emt 0:00:15]} 5. Bb5 e6 6. Ne5 {[%emt 0:01:40] Threatens to win with Qh5+. B00: Queen's Fianchetto Defence, Nimzowitsch Defence.} Nge7 7. Qh5+ {[%emt 0:05:07]} (7. Nc3 $16) 7... g6 $11 {[%emt 0:02:40]} 8. Qe2 {[%emt 0:04:13] [#] g4 is the strong threat.} (8. Qh4 {keeps more tension.} Bg7 9. O-O O-O 10. Bg5) 8... Bg7 {[#]} 9. O-O $146 {[%emt 0:25:07]} (9. Bg5 {seems wilder.} Qd6 10. c3 O-O 11. Nd2) ({Predecessor:} 9. Bxc6+ Nxc6 10. Nxc6 bxc6 11. g4 Be4 12. f3 Qh4+ 13. Kd1 O-O 14. fxe4 Bxd4 15. h3 {1-0 Bologan,V (2695)-Schneider,I (2515) Mainz Ordix op 17th rapid 2010 (9)}) 9... O-O 10. Bxc6 {[%emt 0:05:05]} Nxc6 {[%emt 0:03:11]} 11. Nxc6 {[%emt 0:00:04]} bxc6 {[%emt 0:00:09]} 12. c3 {[%emt 0:01:09] [#]} c5 $1 {[%mdl 64] Deflection} 13. dxc5 {[%emt 0:01:38]} (13. g4 Bxb1) 13... e5 {[%emt 0:08:48]} 14. Nd2 {[%emt 0:02:01]} Qe7 {[%emt 0:00:00][%mdl 1024] Black has compensation.} 15. b4 {[%emt 0:04:14]} a5 {[%emt 0:03:30][%mdl 32768] White got outplayed after the opening.   Weighted Error Value: White=0.19 (very precise) /Black=0.05 (flawless) . Loss on time!?} 1-0

[Event "20th Delhi GM Open 2023"]
[Site "New Delhi"]
[Date "2023.03.24"]
[Round "3.5"]
[White "Mrityunjay Kumar"]
[Black "Mchedlishvili, Mikheil"]
[Result "0-1"]
[ECO "B51"]
[WhiteElo "1668"]
[BlackElo "2569"]
[Annotator "TA"]
[PlyCount "82"]
[EventDate "2023.03.23"]
[EventType "swiss"]
[EventCountry "IND"]
[SourceTitle "playchess.com"]
[Source "ChessBase"]
[SourceQuality "1"]
[TimeControl "5400+30"]

{[%evp 9,81,15,33,27,25,20,31,9,11,9,2,-39,-45,-37,-12,-17,-30,-77,-22,-56,-56,-60,-80,-79,-62,-54,-70,-89,-86,-64,-68,-97,-90,-146,-94,-152,-154,-145,-102,-94,-104,-118,-118,-165,-164,-164,-128,-161,-100,-175,-156,-147,-157,-174,-105,-226,-156,-161,-162,-197,-188,-500,-499,-1130,-1022,-29977,-29978,-29972,-29973,-29994,-29995,-29998,-29999,-29999]} 1. e4 {[%emt 0:05:28]} c5 {[%emt 0:00:14]} 2. Nf3 {[%emt 0:00:00]} d6 {[%emt 0:00:25]} 3. Bb5+ {[%emt 0:00:00]} Nd7 {[%emt 0:00:21]} 4. a4 {[%emt 0:00:00]} Ngf6 {[%emt 0:01:13]} 5. Nc3 g6 {[%emt 0:03:22]} 6. O-O {[%emt 0:00:00] B51: Sicilian: Moscow Variation (3 Bb5+) without 3...Bd7.} a6 {[%emt 0:03:37]} 7. Be2 {[%emt 0:00:00]} Bg7 8. d4 {White is slightly better.} cxd4 $1 {[%emt 0:01:52]} 9. Nxd4 {[%emt 0:00:00]} b6 10. f4 (10. Nc6 $5 Qc7 $8 11. Nb4 $11) 10... Bb7 {[%emt 0:05:59]} 11. Bf3 {[%emt 0:06:26][%cal Oe4e5]} Qc7 {[#]} 12. Nb3 $146 {[%emt 0:04:53]} ({Predecessor:} 12. Nde2 O-O 13. Be3 h5 14. Bd4 e5 15. Bf2 Nc5 16. fxe5 dxe5 17. Ng3 h4 18. Nh1 Ncxe4 19. Nxe4 Nxe4 20. Bxh4 {0-1 Blatov,I (2323)-Kadatsky,A (2353) Samara Zhigulevskie Prostory op 2007 (8)}) 12... O-O {[%emt 0:06:52][%cal Ob6b5]} 13. Qe2 {Prevents b5.} (13. Be3 $11 {was preferrable.}) 13... Rac8 (13... e5 $17) 14. Be3 e5 {[%emt 0:02:22]} 15. Rad1 {[%emt 0:12:13]} exf4 {[%emt 0:02:03]} 16. Bxf4 {[%emt 0:00:16]} Ne5 17. Bxe5 {[%emt 0:00:00]} dxe5 {[%emt 0:00:00]} 18. Kh1 {[%emt 0:13:40]} Rfd8 {[%emt 0:02:09]} 19. Rxd8+ Rxd8 20. Rd1 Bf8 21. g3 (21. Rxd8 $142 Qxd8 22. Qd3) 21... h5 (21... Rxd1+ $142 22. Nxd1 Qd7) 22. Nd5 (22. Rxd8 $142 Qxd8 23. Qd3) 22... Nxd5 $17 {[%emt 0:06:19]} 23. exd5 {[%emt 0:00:00]} Bd6 {[%emt 0:18:37]} 24. c4 {[%emt 0:14:13]} a5 {[%emt 0:03:00]} 25. Nd2 {[%emt 0:00:48]} f5 {[%emt 0:00:00] Wards off Ne4} 26. Rf1 {[%emt 0:04:19]} (26. Bg2 $17) 26... Bc8 $19 27. Qe3 {[%cal Of3h5]} Re8 28. Be2 Rf8 ({Black should play} 28... e4 $19 29. Qg5 Qg7) 29. Nb1 (29. Nf3 $17) 29... Kh7 30. Nc3 Bc5 31. Qd2 Bd7 ({Better is} 31... Qe7 $19 32. Qe1 e4) 32. Nb5 {Now White is beyond hope.} (32. h4 $17) 32... Bxb5 33. axb5 e4 {[%cal Be5e4,Be4e3,Be3f2][%mdl 32]} 34. Rd1 {White is weak on the dark squares} Qd6 35. Kg2 $2 (35. Qc2 {is more resistant.}) 35... f4 {[#] Hoping for ...f3+.} 36. gxf4 (36. Rf1 $142 f3+ 37. Bxf3 exf3+ 38. Rxf3) 36... e3 ({Worse is} 36... Qxf4 37. Qxf4 Rxf4 38. Rf1 Rxf1 39. Kxf1 $17) 37. Qc1 Qxf4 {Black mates.} 38. Rf1 Qe4+ 39. Kg1 Rf2 40. Rxf2 exf2+ {[%emt 0:07:10][%mdl 64] [#] Discovered Attack} 41. Kf1 {[%emt 0:00:00]} Qh1# {[%emt 0:27:02] Weighted Error Value: White=0.59/Black=0.16 (very precise)} 0-1

[Event "20th Delhi GM Open 2023"]
[Site "New Delhi"]
[Date "2023.03.24"]
[Round "3.6"]
[White "Murzin, Volodar"]
[Black "Shankhodip De"]
[Result "1-0"]
[ECO "A04"]
[WhiteElo "2554"]
[BlackElo "1671"]
[Annotator "TA"]
[PlyCount "71"]
[EventDate "2023.03.23"]
[EventType "swiss"]
[EventCountry "IND"]
[SourceTitle "playchess.com"]
[Source "ChessBase"]
[SourceQuality "1"]
[TimeControl "5400+30"]

{[%evp 18,71,0,0,22,0,13,-16,7,6,32,29,60,39,95,100,86,87,89,85,75,51,125,114,88,96,191,170,191,182,240,222,214,196,512,512,591,591,590,585,569,557,886,884,884,875,851,854,840,833,29989,29990,29990,29982,29990,29991]} 1. Nf3 {[%emt 0:04:35]} c5 {[%emt 0:00:31]} 2. g3 {[%emt 0:00:00]} Nc6 {[%emt 0:00:08]} 3. Bg2 {[%emt 0:00:00]} g6 {[%emt 0:00:04]} 4. O-O {[%emt 0:00:00]} Bg7 5. e4 {[%emt 0:00:00]} d6 6. c3 e5 {[%emt 0:04:08]} 7. a3 {[%emt 0:07:30]} Nge7 8. b4 {[%emt 0:01:12]} O-O {[%emt 0:07:41]} 9. d3 {[%emt 0:03:38]} b6 {[%emt 0:03:07]} 10. Nbd2 Ba6 {[%emt 0:11:11] A04: Unusual lines after 1 Nf3 and King's Indian Attack.} 11. Ne1 {[%emt 0:00:00][%cal Bf3e1,Be1c2,Bc2e3,Be3g2][%mdl 32] [#]} Bc8 $146 {[%emt 0:00:00]} ({Predecessor:} 11... d5 12. exd5 Nb8 13. c4 e4 14. Rb1 exd3 15. d6 Nec6 16. b5 Bb7 17. bxc6 Nxc6 18. Nxd3 Qxd6 {1-0 Goumas,I (2206)-Siamidis,D (2163) Heraklion op 6th 2002 (9)}) 12. Nc2 {[%emt 0:01:30]} Be6 {[%emt 0:00:00] The position is equal.} 13. b5 {[%emt 0:00:30]} Nb8 {[%emt 0:00:00]} (13... Na5 $5 {[%cal Rd6d5]}) 14. Bb2 {[%emt 0:00:30]} Nd7 {[%emt 0:00:00]} 15. Ne3 {[%emt 0:00:30]} (15. c4 {simplifies} a6 16. a4 axb5 17. axb5 Rxa1 18. Bxa1 f5 19. f4) 15... f5 {[%emt 0:00:00]} (15... a6 $14) 16. exf5 $16 {[%emt 0:40:04][%mdl 64] Discovered Attack} gxf5 {[%emt 0:21:09][%cal Of5f4]} 17. Bxa8 {[%emt 0:00:25]} Qxa8 {[%emt 0:00:05]} 18. c4 {[%emt 0:00:45]} f4 {[#]} 19. Ng2 {[%emt 0:02:32]} Bh3 {[%emt 0:03:29]} ({Black should try} 19... f3 $14) 20. Ne4 {[%emt 0:00:00]} Nf6 {[%emt 0:00:00] Wards off Qh5} 21. Re1 {[%emt 0:00:00]} ({Don't play} 21. gxf4 Nxe4 22. dxe4 Qxe4 $11) 21... Ng4 {[%emt 0:00:00]} (21... Qb7 $16 {might work better.}) 22. f3 $18 {[%emt 0:00:00]} Bxg2 {[%emt 0:28:23]} 23. fxg4 {[%emt 0:14:38]} ({Weaker is} 23. Kxg2 Ne3+ 24. Rxe3 fxe3 $11) 23... Bh3 {[%emt 0:00:09]} (23... f3 $142 24. a4 (24. Nxd6 $2 f2#) 24... Qc8) 24. Qf3 {[%emt 0:02:09] Hoping for gxf4.} (24. Nxd6 $2 Qg2#) 24... Ng6 {[%emt 0:00:00]} 25. Ra2 {[%emt 0:00:30][%cal Ba1a2,Ba2f2,Bf2f8][%mdl 32]} fxg3 $2 {[%emt 0:00:00]} (25... Qc8) 26. Qxg3 {[%emt 0:00:31]} Nf4 {[%emt 0:00:00][%cal Of4e2]} 27. Bc1 {[%emt 0:00:00]} (27. Nxd6 $2 {leads to mate.} Ne2+ 28. Rxe2 Rf1#) 27... d5 {[%emt 0:00:00]} 28. cxd5 {[%emt 0:00:00]} Qxd5 {[%emt 0:19:30][%cal Of4d3] Threatens to win with ...Nxd3!} 29. Rf2 {[%emt 0:03:27]} Nxd3 {[%emt 0:00:25] Strongly threatening ...Rxf2.} 30. Rxf8+ {[%emt 0:00:09][%mdl 64] Remove Defender} Kxf8 {[%emt 0:00:04]} 31. Qf3+ {[%emt 0:00:00]} Nf4 {[%emt 0:00:00]} 32. Bxf4 {[%emt 0:00:00]} exf4 {[%emt 0:00:00]} 33. Qxf4+ {[%emt 0:01:14]} Kg8 {[%emt 0:01:36]} 34. Qb8+ {[%emt 0:00:17] White mates.} Kf7 {[#]} 35. Ng5+ $1 {[%mdl 576] Double Attack} Kg6 {[%emt 0:01:11]} (35... Kf6 36. Qf4+) 36. Qe8+ {[%emt 0:00:46] Beautiful play by Murzin!   Weighted Error Value: White=0.05 (flawless) /Black=0.71} 1-0

[Event "20th Delhi GM Open 2023"]
[Site "New Delhi"]
[Date "2023.03.24"]
[Round "3.7"]
[White "Aditya Savalkar"]
[Black "Savchenko, Boris"]
[Result "0-1"]
[ECO "B88"]
[WhiteElo "1664"]
[BlackElo "2552"]
[Annotator "TA"]
[PlyCount "100"]
[EventDate "2023.03.23"]
[EventType "swiss"]
[EventCountry "IND"]
[SourceTitle "playchess.com"]
[Source "ChessBase"]
[SourceQuality "1"]
[TimeControl "5400+30"]

{[%evp 16,99,0,0,0,-21,-12,-16,-12,-9,-13,-54,-55,-129,-27,-32,-2,0,-17,-50,-39,-124,-126,-132,-127,-133,-125,-113,-121,-198,-211,-188,-184,-183,-181,-196,-183,-183,-180,-186,-191,-371,-364,-322,-278,-259,-212,-369,-371,-371,-367,-366,-264,-262,-271,-280,-267,-272,-257,-264,-260,-282,-270,-277,-258,-274,-257,-260,-252,-1012,-1004,-986,-979,-892,-865,-928,-927,-29960,-29964,-6133,-5808,-4794,-1408,-1641,-1571,-29999]} 1. e4 {[%emt 0:00:56]} c5 {[%emt 0:00:12]} 2. Nf3 {[%emt 0:00:07]} Nc6 {[%emt 0:01:52]} 3. d4 {[%emt 0:00:07]} cxd4 {[%emt 0:00:07]} 4. Nxd4 {[%emt 0:00:02]} Nf6 {[%emt 0:00:58]} 5. Nc3 {[%emt 0:02:19]} d6 {[%emt 0:00:55]} 6. Bc4 {[%emt 0:01:29]} e6 {[%emt 0:00:21]} 7. Be3 {[%emt 0:04:18]} Be7 {[%emt 0:00:10] 7...a6 injects fresh life into this line.} 8. O-O {[%emt 0:02:02]} O-O {[%emt 0:08:32]} 9. h3 {[%emt 0:01:40]} a6 {[%emt 0:08:06] B88: Sicilian: Sozin Attack.} 10. f4 {[%emt 0:06:30]} d5 {[%emt 0:00:34] [#] Threatens to win with ...Nxd4.} 11. exd5 {[%emt 0:04:24]} exd5 {[%emt 0:00:37] The position is equal.} 12. Bb3 {[%emt 0:00:15] [#]} Re8 $146 {[%emt 0:02:49]} ({Predecessor:} 12... Bc5 13. Kh1 Re8 14. Nxc6 bxc6 15. Bxc5 h5 16. Bd4 Bf5 17. Bxf6 Qxf6 18. Qxh5 d4 {1-0 Verbel,J (2034)-Suaza,Y (1976) Mosquera op 2014 (7)}) 13. Qf3 {[%emt 0:12:51]} Bc5 {[%emt 0:02:47]} 14. Rad1 {[%emt 0:00:30]} (14. Nce2 $1 $15) 14... Qb6 {[%emt 0:06:40]} (14... Bg4 $17 15. hxg4 Rxe3 16. Qxe3 Nxd4) 15. Nce2 $11 {[%emt 0:13:48]} Na5 {[%emt 0:00:24]} 16. Bf2 {[%emt 0:03:11]} Nc4 {[%emt 0:03:03]} 17. Bxc4 {[%emt 0:15:54]} dxc4 {[%emt 0:00:43]} 18. Qc3 {[%emt 0:00:21] Black keeps a firm grip on the game.} (18. Nc3 $15) 18... Ne4 $17 {[%emt 0:04:41] Black is more active.} 19. Qxc4 {[%emt 0:04:34]} Be6 {[%emt 0:09:56][%cal Bc8e6,Be6a2,Ba2b3,Bb3c4,Bc4d3,Bd3f5,Bf5e4][%mdl 32]} 20. Qd3 {[%emt 0:02:51]} Nxf2 {[%emt 0:02:09]} (20... Bxa2 21. b3 $15) 21. Rxf2 {[%emt 0:00:39]} Qxb2 {[%emt 0:00:18] And now ...b5 would win.} (21... Bxa2 22. c3) 22. f5 {[%emt 0:08:52]} (22. Nc1 $17) 22... Bxa2 $19 {[%emt 0:01:34]} 23. c3 {[%emt 0:00:50]} Qb6 {[%emt 0:07:22]} 24. Nf4 {[%emt 0:02:58]} Bb3 $36 {[%emt 0:00:59][%mdl 2048] Black is in control.} 25. Rb1 {[%emt 0:04:40] [#]} Bc4 {[%emt 0:00:16][%mdl 576] Deflection} 26. Rxb6 {[%emt 0:00:15]} Bxd3 {[%emt 0:00:07] This pair of bishops is nice.} 27. Rxb7 {[%emt 0:00:06]} Bxf5 {[%emt 0:00:08]} 28. Kf1 $2 {[%emt 0:04:39]} (28. Rc7 {keeps fighting.} Re1+ 29. Rf1) 28... Be4 {[%emt 0:02:21]} 29. Rc7 {[%emt 0:00:08]} Bb6 {[%emt 0:00:38]} 30. Rd7 {[%emt 0:00:02]} Rac8 {[%emt 0:01:46]} 31. Nfe2 {[%emt 0:04:10]} (31. Rb2 {only move.} Bd8 32. Re2) 31... Bd3 {[%emt 0:00:22]} 32. Ke1 {[%emt 0:00:31]} Bb5 {[%emt 0:04:05]} (32... Rxc3 $2 33. Kd1 Ra3 34. Rfxf7 $19) 33. Rd6 {[%emt 0:00:30]} Bxd4 {[%emt 0:01:56]} 34. Rxd4 {[%emt 0:00:30]} Rxc3 {[%emt 0:00:11]} 35. Kd2 {[%emt 0:00:28] Prevents Rc2+} Rb3 {[%emt 0:00:23]} 36. Kc2 {[%emt 0:00:32]} Ra3 {[%emt 0:00:29]} (36... Rxe2+ 37. Rxe2 (37. Kxb3 Re3+ 38. Kb4 f6 $11) 37... g5 38. Kxb3 $14) 37. Kb2 {[%emt 0:00:19]} Rae3 {[%emt 0:00:33]} ({Less strong is} 37... Rxe2+ 38. Rxe2 (38. Kxa3 Re3+ 39. Kb4 f6 $11) 38... h6 39. Kxa3 $14) 38. Nc3 {[%emt 0:00:11]} Bc6 {[%emt 0:00:22]} 39. Rd6 {[%emt 0:00:59]} Ba8 {[%emt 0:01:44] White must now prevent ...Rb8+.} 40. Rxa6 {[%emt 0:00:31]} Rb8+ {[%emt 0:00:52]} 41. Kc2 {[%emt 0:00:24]} Rg3 {[%emt 0:00:15]} ({Wrong is} 41... Rc8 $2 42. Kd2 Rg3 43. Ne2 Rd8+ 44. Ke1 $19) 42. Ne2 $2 {[%emt 0:00:36]} (42. Ra4) 42... Be4+ {[%emt 0:00:10]} ({Weaker is} 42... Rxg2 43. Rxa8 Rxa8 44. Rxg2 $16) 43. Kd2 {[%emt 0:00:28]} Rd3+ {[%emt 0:01:36]} 44. Kc1 {[%emt 0:00:28]} Rc8+ {[%emt 0:00:14]} 45. Kb2 {[%emt 0:00:05]} Rd2+ {[%emt 0:00:08]} 46. Kb3 {[%emt 0:00:23]} Bd5+ {[%emt 0:00:15]} 47. Kb4 {[%emt 0:00:51]} Rb2+ {[%emt 0:00:09]} 48. Ka5 {[%emt 0:00:37]} Rcb8 {[%emt 0:00:09]} (48... Ra2+ $142 49. Kb6 Rc6+ 50. Kb5 Rcxa6) 49. Nc3 {[%emt 0:00:31]} Rxf2 {[%emt 0:00:12]} 50. Nxd5 {[%emt 0:00:04]} Ra2# {[%emt 0:00:42] A cool game by Savchenko.   Weighted Error Value: White=0.81/Black=0.29 (precise)} 0-1